Cogmind - Beta 15 @@@ ROGUE MODE // 2025.10.19 @ 13:25:49 Player: weras Result: Destroyed by G-50 Soldier with Heavy Laser Performance ------------- Evolutions (4) 2000 Regions Visited (12) 2400 Robots Destroyed (92) 460 Value Destroyed (3242) 3242 Prototype IDs (28) 560 Alien Tech Used (0) 0 Bonus (3741) 3741 TOTAL SCORE: 12403 Bonus ------- Follower Combat Kills 141 Entered Garrisons 800 Used RIF Installer 2500 Aligned with FarCom 300 Cogmind --------- Core Integrity 0/850 Matter 300/300 Energy 100/100 System Corruption 0% Temperature Cool (9) Movement Core (700) Ox13 Location -6/Garrison Parts ------- > --- POWER (2) -------- (None) > --- PROPULSION (4) --- (None) > --- UTILITY (6) ------ High-capacity Storage Unit > --- WEAPON (3) ------- (None) > --- INVENTORY (20) --- Improved Titanium Leg High-capacity Matter Pod (200) Improved Terrain Scanner Advanced Terrain Scan Processor System Shield Relay Coupler [NC] (33) Relay Coupler [Hunter] (19) High-powered Tractor Beam Field Laser Gauss Rifle Remote Datajack Power Maul Peak State ------------ > --- POWER ------------ Improved Deuterium Engine Micro Fission Core > --- PROPULSION ------- Improved Carbon-fiber Leg Improved Carbon-fiber Leg Improved Carbon-fiber Leg Potential Leg > --- UTILITY ---------- Improved Heat Sink Advanced Heat Sink High-capacity Storage Unit Transmission Jammer Improved Medium Armor Plating Improved Medium Armor Plating > --- WEAPON ----------- Heavy Laser Plasma Cannon Power Maul > --- INVENTORY -------- Improved Titanium Leg Improved Titanium Leg High-capacity Matter Pod Improved Terrain Scanner Advanced Terrain Scan Processor Improved Medium Armor Plating System Shield Relay Coupler [NC] Relay Coupler [Brawler] Relay Coupler [Hunter] High-powered Tractor Beam Field Laser Ion Cannon Plasma Cannon Plasma Cannon Gauss Rifle Remote Datajack [Rating: 70] Favorites ----------- Power Light Ion Engine Engine Light Ion Engine Power Core Micro Fission Core Propulsion Potential Leg Leg Potential Leg Wheel Compact Wheel Flight Unit Cooled VTOL Module Utility High-capacity Storage Unit Device Improved Heat Sink Storage High-capacity Storage Unit Processor Signal Interpreter Hackware Hacking Suite Protection Improved Medium Armor Plating Weapon Heavy Laser Energy Gun Heavy Laser Energy Cannon Plasma Cannon Ballistic Cannon Improved Light Cannon Launcher Rocket Launcher Special Weapon Remote Datajack Impact Weapon Heavy Mace Slashing Weapon Scythe Build | -11 -10 -10 -10 -9 -8 -8 -7 -7 -7 -7 -6 -6 ------- Run | Yrd Mat Min Exi Min Mat Gar Fac Gar Fac Gar Fac Gar Slots Evolved 8 | . . . . . 4 . 2 . . . 2 . Power 1 | . . . . . . . . . . . 1 . Propulsion 2 | . . . . . 2 . . . . . . . Utility 4 | . . . . . 2 . 1 . . . 1 . Weapon 1 | . . . . . . . 1 . . . . . Parts Attached 85 | 6 13 . 2 3 14 3 7 4 22 6 2 3 Power 9 | 1 1 . . . 1 1 2 1 1 . 1 . Engine 5 | 1 1 . . . . 1 1 . 1 . . . Core 4 | . . . . . 1 . 1 1 . . 1 . Reactor . | . . . . . . . . . . . . . Propulsion 17 | 2 3 . 2 1 1 . 1 . 7 . . . Treads . | . . . . . . . . . . . . . Leg 8 | . . . 2 1 . . . . 5 . . . Wheel 8 | 2 3 . . . 1 . 1 . 1 . . . Hover . | . . . . . . . . . . . . . Flight 1 | . . . . . . . . . 1 . . . Utility 33 | 1 4 . . 1 6 . 2 3 10 4 1 1 Device 15 | . 1 . . 1 2 . 1 1 7 1 1 . Storage 3 | 1 2 . . . . . . . . . . . Processor 2 | . . . . . 1 . . . 1 . . . Hackware 5 | . . . . . 1 . 1 . . 2 . 1 Protection 8 | . 1 . . . 2 . . 2 2 1 . . Artifact . | . . . . . . . . . . . . . Weapon 26 | 2 5 . . 1 6 2 2 . 4 2 . 2 Energy Gun 11 | 2 . . . . 3 1 2 . 3 . . . Energy Cannon 4 | . . . . . 1 . . . . 1 . 2 Ballistic Gun . | . . . . . . . . . . . . . Ballistic Cannon 3 | . 3 . . . . . . . . . . . Launcher 3 | . 1 . . 1 1 . . . . . . . Special Weapon 1 | . . . . . . . . . . 1 . . Impact Weapon 3 | . 1 . . . . 1 . . 1 . . . Slashing Weapon 1 | . . . . . 1 . . . . . . . Piercing Weapon . | . . . . . . . . . . . . . Special Melee Weapon . | . . . . . . . . . . . . . Unidentified Prototypes 5 | . . . . 1 1 . . . 3 . . . Parts Lost 27 | . 1 . . . . 1 1 5 2 2 . 15 Power 5 | . . . . . . 1 1 1 . . . 2 Propulsion 6 | . . . . . . . . 2 . . . 4 Utility 10 | . 1 . . . . . . 2 1 1 . 5 Weapon 6 | . . . . . . . . . 1 1 . 4 Highest Loss Streak 15 | . 1 . . . . 1 1 3 2 2 . 15 To Critical Strikes . | . . . . . . . . . . . . . Average Backups 18 | 1 15 19 20 19 19 19 19 18 19 19 19 15 Power 1 | . 1 2 2 2 2 1 . 1 1 1 . . Propulsion . | . 1 2 2 2 . . . . . 2 2 1 Utility 9 | . 5 8 8 8 10 11 12 11 11 9 9 8 Weapon 5 | . 5 7 8 6 6 6 5 5 5 6 5 4 Tool/Special . | . . . . . . . . . . . . . Unused Backups 27 | . 2 2 1 . 9 . . 1 3 1 1 7 Power . | . . . . . . . . . . . . . Propulsion 1 | . . . . . . . . . 1 . . . Utility 18 | . . 2 . . 6 . . 1 1 1 1 6 Weapon 6 | . 1 . 1 . 3 . . . . . . 1 Tool/Special 2 | . 1 . . . . . . . 1 . . . Average Slot Usage (%) 95 | . 99 100 69 100 96 99 99 96 93 99 93 72 Engine 6 | . 14 14 14 14 2 3 4 . 2 7 6 3 Core 3 | . . . . . 6 5 2 6 4 . 3 4 Leg 17 | . . . 8 28 18 18 15 15 20 29 26 19 Wheel 11 | . 28 28 17 . 14 18 15 11 3 . . . Device 10 | . 1 . . . 9 9 18 15 22 16 16 13 Storage 9 | . 14 14 14 14 9 9 7 7 7 7 6 6 Hackware 1 | . . . . . 5 . 6 1 . 3 . 1 Protection 11 | . 12 14 14 14 9 18 4 13 7 9 13 7 Energy Gun 8 | . 1 . . . 11 9 15 12 14 11 6 3 Ballistic Cannon 7 | . 21 14 . 27 2 1 . . . . . . Impact Weapon 4 | . 4 . . . 2 5 7 6 6 4 6 . Peak Build Rating 70 | 6 12 12 30 37 49 50 53 59 69 63 70 70 Average Rating 43 | 4 10 11 13 30 44 48 51 57 60 60 64 51 On Entrance 37 | . 6 11 11 30 31 48 47 53 59 61 60 70 Naked Turns . | . . . . . . . . . . . . . Heaviest Build 86 | 13 58 55 56 56 69 69 71 76 77 80 86 86 Greatest Support 84 | 26 32 26 60 60 60 26 26 60 84 84 84 84 Greatest Overweight (x) 15 | . 2 2 15 1 2 2 2 2 4 1 1 2 Average Overweight (x) 1 | . 1 2 . . . 2 2 1 . . . . Largest Inventory Capacity 20 | 8 20 20 20 20 20 20 20 20 20 20 20 20 Average Capacity 19 | 6 19 20 20 20 20 20 20 20 20 20 20 20 Most Carried 20 | 2 20 20 20 20 20 20 20 20 20 20 20 17 Average Carried 18 | 1 15 18 19 19 19 19 19 18 19 19 18 15 Final Capacity 20 | 8 20 20 20 20 20 20 20 20 20 20 20 20 Final Carried 20 | 2 19 19 18 20 19 19 20 18 20 20 17 12 Class Distribution -------------------- 84% | Mutant 4% | Skirmisher 3% | Scavenger-Assassin Dominant Class ---------------- Mutant | -10/Materials Mutant | -10/Mines Mutant | -10/Exiles Mutant | -9/Mines Mutant | -8/Materials Mutant | -8/Garrison Mutant | -7/Factory Scavenger-Mutant | -7/Garrison Mutant | -7/Factory Mutant | -7/Garrison Mutant | -6/Factory Mutant | -6/Garrison Resources | -11 -10 -10 -10 -9 -8 -8 -7 -7 -7 -7 -6 -6 ----------- Run | Yrd Mat Min Exi Min Mat Gar Fac Gar Fac Gar Fac Gar Matter Collected 2712 | 206 675 149 . 286 239 237 103 143 437 182 . 55 Remotely . | . . . . . . . . . . . . . Salvage Created 2556 | . 423 9 . 317 212 143 184 294 602 120 . 252 Parts 164 | . 41 4 . 23 12 17 16 14 25 8 . 4 Haulers Intercepted 5 | . 2 . . . 1 . 1 . 1 . . . Recyclers Shooed . | . . . . . . . . . . . . . Parts Field Recycled . | . . . . . . . . . . . . . Retrieved Matter . | . . . . . . . . . . . . . Parts Self-Destructed . | . . . . . . . . . . . . . Prevented . | . . . . . . . . . . . . . Kills | -11 -10 -10 -10 -9 -8 -8 -7 -7 -7 -7 -6 -6 ------- Run | Yrd Mat Min Exi Min Mat Gar Fac Gar Fac Gar Fac Gar Combat Hostiles Destroyed 65 | . 14 3 . 5 3 8 1 9 13 4 . 5 Guns 25 | . . . . . 1 4 1 5 11 2 . 1 Cannons 21 | . 7 2 . 4 2 1 . . . 1 . 4 AOE 17 | . 7 1 . 1 . 3 . 4 . 1 . . Classes Destroyed 13 | . 7 . . 1 1 1 1 . . 1 . 1 Worker 6 | . 1 . . 1 . . 1 . 3 . . . Builder 4 | . 3 . . . . . 1 . . . . . Tunneler 2 | . . . . 1 . . . . 1 . . . Hauler 5 | . 2 . . . 1 . 1 . 1 . . . Recycler 5 | . 1 . . 3 . . . . 1 . . . Operator 1 | . . . . . . . 1 . . . . . Watcher 4 | . 3 . . . 1 . . . . . . . Swarmer 29 | . 9 3 . 3 . 4 . 3 5 1 . 1 Cutter 2 | . . . . . . . . . . 2 . . Grunt 16 | . 5 . . 2 . . . 4 2 . . 3 Duelist 1 | . . . . . . . . . . . . 1 Sentry 7 | . . . . . 3 1 1 . 1 1 . . Programmer 10 | . . . . . . 3 . 2 5 . . . Best Kill Streak 7 | . 6 3 . 3 1 3 2 7 6 2 . 2 Combat Bots Only 7 | . 6 3 . 3 1 3 1 7 5 2 . 2 Max Kills in Single Turn 3 | . 2 2 . 1 1 3 1 2 2 1 . 1 Gunslinging 1 | . . . . . . . . . 1 . . . Exploded 3 | . 2 1 . 1 . 3 . 2 . 1 . . Melee . | . . . . . . . . . . . . . Uniques/NPCs Destroyed . | . . . . . . . . . . . . . Combat | -11 -10 -10 -10 -9 -8 -8 -7 -7 -7 -7 -6 -6 -------- Run | Yrd Mat Min Exi Min Mat Gar Fac Gar Fac Gar Fac Gar Hostile Shots Fired 674 | . 53 11 . 18 18 53 43 39 125 44 . 270 Missed 210 | . 25 1 . 2 6 11 19 10 40 15 . 81 Hits 464 | . 28 10 . 16 12 42 24 29 85 29 . 189 Melee 15 | . . . . . . . . . . 3 . 12 Projectile 449 | . 28 10 . 16 12 42 24 29 85 26 . 177 AOE 1 | . . . . . . . . . . 1 . . Critical Strikes 17 | . 1 . . . 2 . . 2 3 3 . 6 Part Disruptions 1 | . . . . . . 1 . . . . . . Damage Taken 6849 | . 356 94 . 147 199 526 384 836 1080 459 . 2768 Core 1335 | . 26 . . 15 15 38 58 138 107 75 . 863 Absorbed by Shields 193 | . . . . . . . . . . . . 193 Core Remaining (%) 79 | 100 . . . 83 . 90 . . . 46 . . Volleys Fired 244 | . 49 4 . 19 16 33 14 28 39 14 . 28 Largest 3 | . 2 2 . 2 2 2 2 2 2 2 . 3 Hottest 229 | . 66 63 . 66 132 138 138 138 149 160 . 229 Shots Fired 419 | . 88 7 . 32 32 50 23 42 69 20 . 56 Gun 199 | . . . . . 21 28 23 27 67 10 . 23 Cannon 188 | . 81 4 . 28 11 20 . 9 1 4 . 30 Launcher 23 | . 7 3 . 4 . 2 . 6 1 . . . Special 9 | . . . . . . . . . . 6 . 3 Kinetic 137 | . 81 4 . 28 4 20 . . . . . . Thermal 250 | . . . . . 28 28 23 36 68 14 . 53 Explosive 23 | . 7 3 . 4 . 2 . 6 1 . . . Electromagnetic . | . . . . . . . . . . . . . Robot Hit Streak 10 | . 7 10 . 3 9 7 5 5 9 10 . 9 Robot Miss Streak 9 | . 9 . . 6 2 5 2 2 7 3 . 3 Penetration Max . | . . . . . . . . . . . . . Secondary Targets 2 | . . . . . . . . . 2 . . . Max Gunslinging Chain 1 | . . . . . . . . . 1 . . . Shots Hit Robots 245 | . 34 3 . 12 23 23 17 19 64 14 . 36 Core Hits 142 | . 28 3 . 13 8 11 8 20 31 7 . 13 Critical Kills . | . . . . . . . . . . . . . Critical Parts Destroyed 5 | . . . . . . . 2 . 3 . . . Critical Strikes 6 | . . . . . . . 2 . 3 . . 1 Burn 1 | . . . . . . . . . . . . 1 Smash 5 | . . . . . . . 2 . 3 . . . Melee Attacks 78 | . 1 . . . 8 24 7 10 26 2 . . Impact 78 | . 1 . . . 8 24 7 10 26 2 . . Slashing . | . . . . . . . . . . . . . Piercing . | . . . . . . . . . . . . . Sneak Attacks 6 | . . . . . . . 2 . 4 . . . Combat Hostiles . | . . . . . . . . . . . . . Follow-up Attacks . | . . . . . . . . . . . . . Damage Inflicted 7049 | . 1135 121 . 414 450 759 616 703 1820 188 . 843 Guns 2778 | . . . . . 253 261 279 372 1160 164 . 289 Cannons 2046 | . 669 58 . 239 197 282 . . 23 24 . 554 Explosions 1431 | . 466 63 . 175 . 216 183 292 36 . . . Melee 794 | . . . . . . . 154 39 601 . . . Ramming . | . . . . . . . . . . . . . Kinetic 1307 | . 669 58 . 239 59 282 . . . . . . Thermal 3517 | . . . . . 391 261 279 372 1183 188 . 843 Explosive 1431 | . 466 63 . 175 . 216 183 292 36 . . . Electromagnetic . | . . . . . . . . . . . . . Impact 794 | . . . . . . . 154 39 601 . . . Slashing . | . . . . . . . . . . . . . Piercing . | . . . . . . . . . . . . . Highest Corruption 12 | . 2 2 2 2 . 6 . 12 12 2 . . Average Corruption 3 | . 1 2 2 2 . 5 . 5 3 2 . . Corruption Purged 12 | . . . . . . . . . 12 . . . Corruption Blocked . | . . . . . . . . . . . . . Effects 105 | . 10 1 5 16 . 32 . 6 28 7 . . Message Errors 19 | . 3 . . 5 . 4 . 2 4 1 . . Matter Fused 26 | . 1 . 3 7 . 5 . 1 8 1 . . Heat Flow Errors 14 | . 2 . . . . 7 . . 3 2 . . Energy Discharges 19 | . 2 1 . 1 . 10 . . 5 . . . Parts Rejected 2 | . 1 . . . . . . . 1 . . . Parts Fused 1 | . . . . . . . . . . 1 . . Data Loss (minor) 12 | . 1 . 2 . . 3 . 2 2 2 . . Data Loss (major) 5 | . . . . 2 . 2 . . 1 . . . Misfires 3 | . . . . . . . . 1 2 . . . Alerts 1 | . . . . . . . . . 1 . . . Weapon Failures 3 | . . . . 1 . 1 . . 1 . . . Overload Shots . | . . . . . . . . . . . . . Overflow Damage 443 | . . . . 8 . . 152 . 267 . . 16 Projectiles 16 | . . . . . . . . . . . . 16 Explosions 49 | . . . . 8 . . 41 . . . . . Melee 378 | . . . . . . . 111 . 267 . . . Knockbacks 17 | . 6 . . 2 . 6 1 . 2 . . . Impact 3 | . . . . . . . 1 . 2 . . . Kinetic 12 | . 6 . . 2 . 4 . . . . . . Secondary 2 | . . . . . . 2 . . . . . . Self-Inflicted Damage 256 | . 73 7 . . . . 160 16 . . . . Shots 7 | . 3 1 . . . . 2 1 . . . . Rammed . | . . . . . . . . . . . . . Targets Rammed . | . . . . . . . . . . . . . Kicked . | . . . . . . . . . . . . . Crushed . | . . . . . . . . . . . . . Highest Temperature 336 | . 275 39 . 93 50 278 1 . 148 233 . 336 Average Temperature 79 | . 75 20 . 30 20 122 1 . 29 49 . 153 Received Heat Transfer 1169 | . 120 . . 24 99 18 60 . 159 24 . 665 Effects 2 | . . . . . . 1 . . . . . 1 Energy Bleed 2 | . . . . . . 1 . . . . . 1 Siege Activations . | . . . . . . . . . . . . . Martial Activations . | . . . . . . . . . . . . . Shielding Activations . | . . . . . . . . . . . . . Robots Disrupted . | . . . . . . . . . . . . . Combat Hostiles . | . . . . . . . . . . . . . Robots Corrupted 3 | . . . . . . . . . 3 . . . Combat Hostiles 1 | . . . . . . . . . 1 . . . Parts Fried 7 | . . . . . . . . . 7 . . . Impact Corruptions 12 | . . . . . . . 3 . 9 . . . Robots Melted 1 | . . . . . . . . . 1 . . . Combat Hostiles 1 | . . . . . . . . . 1 . . . Parts Melted 19 | . . . . . 3 1 . 1 8 1 . 5 Heat Transferred 6469 | . . . . . 740 444 518 395 2316 411 . 1645 Parts Sabotaged . | . . . . . . . . . . . . . Parts Stolen . | . . . . . . . . . . . . . Parts Stripped . | . . . . . . . . . . . . . Power Chain Reactions . | . . . . . . . . . . . . . Alert | -11 -10 -10 -10 -9 -8 -8 -7 -7 -7 -7 -6 -6 ------- Run | Yrd Mat Min Exi Min Mat Gar Fac Gar Fac Gar Fac Gar Maximum Alert Level 2 | . . . . . . 2 1 1 . 1 . 1 Low Security (%) 79 | 100 100 100 . 100 100 49 74 4 100 20 100 42 Level 1 18 | . . . . . . 41 25 95 . 79 . 57 Level 2 1 | . . . . . . 9 . . . . . . Level 3 . | . . . . . . . . . . . . . Level 4 . | . . . . . . . . . . . . . Level 5 . | . . . . . . . . . . . . . High Security . | . . . . . . . . . . . . . Max Security . | . . . . . . . . . . . . . Peak Influence 474 | . 171 103 . 84 54 474 248 358 186 370 193 361 Initial 248 | . . 13 . . 27 . 248 87 172 116 193 128 Average 109 | . 83 50 . 10 6 216 177 314 61 248 189 231 Influence Increases 3118 | . 482 90 . 188 123 484 141 292 601 334 . 383 Destroy 0b10 Robot/C 1500 | . 280 60 . 100 60 160 20 180 360 100 . 180 Destroy 0b10 Robot/NC 135 | . 50 . . 25 10 . 20 . 30 . . . Destroy Leader 298 | . 70 10 . 20 34 10 12 10 112 20 . . Allied During Kill 22 | . . . . . . . . . 12 2 . 8 Successful Hack 147 | . 9 . . . 16 42 9 . 50 21 . . Disable Machine 90 | . 30 . . 15 . . 30 . 15 . . . Anti-Garrison Action 400 | . . . . . . 150 . 50 . 100 . 100 Destroy Structure 301 | . 43 20 . 28 3 107 35 37 22 1 . 5 Lose Combat Pursuer 225 | . . . . . . 15 15 15 . 90 . 90 Influence Decreases 2837 | . 447 125 . 116 195 10 490 88 763 131 187 285 Entered New Map 771 | . . 22 . . 45 . 226 38 157 51 177 55 Time Decay 1656 | . 437 103 . 116 150 . 254 . 586 . 10 . Lost Part 270 | . 10 . . . . 10 10 50 20 20 . 150 Lost Ally 140 | . . . . . . . . . . 60 . 80 Squads Dispatched 14 | . 2 . . . 1 . 3 . 8 . . . Investigation 1 | . . . . . 1 . . . . . . . Extermination 7 | . . . . . . . 2 . 5 . . . Reinforcement 6 | . 2 . . . . . 1 . 3 . . . Assault . | . . . . . . . . . . . . . Garrison . | . . . . . . . . . . . . . Intercept . | . . . . . . . . . . . . . Searches Triggered . | . . . . . . . . . . . . . Construction Impeded . | . . . . . . . . . . . . . Haulers Reinforced 1 | . . . . . . . . . 1 . . . Active Scanning Responses . | . . . . . . . . . . . . . Cargo Convoy Interrupts . | . . . . . . . . . . . . . Stealth | -11 -10 -10 -10 -9 -8 -8 -7 -7 -7 -7 -6 -6 --------- Run | Yrd Mat Min Exi Min Mat Gar Fac Gar Fac Gar Fac Gar Distress Signals 4 | . 1 . . . 1 . . . 2 . . . Communications Jammed 8 | . . . . . . . . . 8 . . . Distress Signals 7 | . . . . . . . . . 7 . . . Times Spotted 116 | . 23 3 . 5 7 8 3 9 16 14 . 28 Peak Tracking Total 12 | . 5 3 . 3 3 4 2 4 5 8 . 12 Tactical Retreats 10 | . . . . . . 1 1 1 . 3 . 4 Traps | -11 -10 -10 -10 -9 -8 -8 -7 -7 -7 -7 -6 -6 ------- Run | Yrd Mat Min Exi Min Mat Gar Fac Gar Fac Gar Fac Gar Traps Triggered 12 | . 2 . . . 2 2 . 1 2 1 . 2 Indirectly . | . . . . . . . . . . . . . Trap Hack Attempts . | . . . . . . . . . . . . . Triggered . | . . . . . . . . . . . . . Disarmed . | . . . . . . . . . . . . . Reprogrammed . | . . . . . . . . . . . . . Reused . | . . . . . . . . . . . . . Traps Extracted . | . . . . . . . . . . . . . Installed . | . . . . . . . . . . . . . Triggered . | . . . . . . . . . . . . . Machines | -11 -10 -10 -10 -9 -8 -8 -7 -7 -7 -7 -6 -6 ---------- Run | Yrd Mat Min Exi Min Mat Gar Fac Gar Fac Gar Fac Gar Machines Disabled 10 | . 2 . . 1 . 1 2 1 1 2 . . Max in Single Turn 2 | . 1 . . 1 . 1 2 1 1 1 . . Garrison Relay 4 | . . . . . . 1 . 1 . 2 . . Machines Repaired . | . . . . . . . . . . . . . Machines Dismantled . | . . . . . . . . . . . . . Machines Sabotaged . | . . . . . . . . . . . . . Overloaded Fab Kills . | . . . . . . . . . . . . . Hacking | -11 -10 -10 -10 -9 -8 -8 -7 -7 -7 -7 -6 -6 --------- Run | Yrd Mat Min Exi Min Mat Gar Fac Gar Fac Gar Fac Gar Machines Accessed 31 | . 5 . 2 . 7 3 2 . 9 2 1 . Terminals 24 | . 5 . . . 6 3 1 . 7 2 . . Fabricators . | . . . . . . . . . . . . . Repair Stations . | . . . . . . . . . . . . . Recycling Units . | . . . . . . . . . . . . . Scanalyzers 1 | . . . . . . . . . 1 . . . Garrison Access 4 | . . . . . 1 . 1 . 1 . 1 . Total Hacks 61 | . 13 . 2 . 17 5 4 . 17 2 1 . Successful 38 | . 5 . 2 . 12 3 4 . 9 2 1 . Failed 23 | . 8 . . . 5 2 . . 8 . . . Catastrophic 3 | . 1 . . . . . . . 2 . . . Database Lockouts . | . . . . . . . . . . . . . Manual 31 | . 13 . 1 . 11 . 2 . 4 . . . Terminals 52 | . 13 . . . 16 5 2 . 14 2 . . Fabricators . | . . . . . . . . . . . . . Repair Stations . | . . . . . . . . . . . . . Recycling Units . | . . . . . . . . . . . . . Scanalyzers 2 | . . . . . . . . . 2 . . . Garrison Access 5 | . . . . . 1 . 2 . 1 . 1 . Terminal Hacks 14 | . . . 2 . 4 3 . . 3 2 . . Record 3 | . . . 1 . . . . . 2 . . . Open Door 1 | . . . . . . . . . . 1 . . Emergency Access Points 2 | . . . . . . 1 . . . 1 . . Alert Level 1 | . . . . . 1 . . . . . . . Registered Components 1 | . . . . . 1 . . . . . . . Zone Layout 3 | . . . . . 2 . . . 1 . . . Garrison Registry 1 | . . . . . . 1 . . . . . . Patrol Navigation 1 | . . . . . . 1 . . . . . . Proto ID Catalog 1 | . . . 1 . . . . . . . . . Fabricator Hacks . | . . . . . . . . . . . . . Repair Station Hacks . | . . . . . . . . . . . . . Recycling Unit Hacks . | . . . . . . . . . . . . . Scanalyzer 2 | . . . . . . . . . 2 . . . Insert Component 1 | . . . . . . . . . 1 . . . Analyze 1 | . . . . . . . . . 1 . . . Garrison Access Hacks 5 | . . . . . 1 . 2 . 1 . 1 . Unlock Access 4 | . . . . . 1 . 1 . 1 . 1 . Coupler Status 1 | . . . . . . . 1 . . . . . Unauthorized Hacks 17 | . 5 . . . 7 . 2 . 3 . . . Terminals 17 | . 5 . . . 7 . 2 . 3 . . . Botnet 8 | . 2 . . . 2 . 1 . 3 . . . Skim 9 | . 3 . . . 5 . 1 . . . . . Fabricators . | . . . . . . . . . . . . . Repair Stations . | . . . . . . . . . . . . . Recycling Units . | . . . . . . . . . . . . . Scanalyzers . | . . . . . . . . . . . . . Garrison Access . | . . . . . . . . . . . . . Data Cores Recovered . | . . . . . . . . . . . . . Used . | . . . . . . . . . . . . . Hacking Detections 22 | . 5 . . . 6 1 2 . 7 1 . . Full Trace Events . | . . . . . . . . . . . . . Feedback Events . | . . . . . . . . . . . . . Feedback Blocked . | . . . . . . . . . . . . . Robot Schematics Acquired . | . . . . . . . . . . . . . Robots Built . | . . . . . . . . . . . . . Authchips . | . . . . . . . . . . . . . Time . | . . . . . . . . . . . . . Total Robot Build Rating . | . . . . . . . . . . . . . Part Schematics Acquired 1 | . . . . . . . . . 1 . . . Parts Built . | . . . . . . . . . . . . . Authchips . | . . . . . . . . . . . . . Time . | . . . . . . . . . . . . . Total Part Build Rating . | . . . . . . . . . . . . . Parts Repaired . | . . . . . . . . . . . . . Time . | . . . . . . . . . . . . . Parts Recycled . | . . . . . . . . . . . . . Recycled Matter . | . . . . . . . . . . . . . Retrieved Matter . | . . . . . . . . . . . . . Retrieved Components . | . . . . . . . . . . . . . Parts Scanalyzed 1 | . . . . . . . . . 1 . . . Part Schematics Acquired 1 | . . . . . . . . . 1 . . . Parts Damaged . | . . . . . . . . . . . . . Bothacking | -11 -10 -10 -10 -9 -8 -8 -7 -7 -7 -7 -6 -6 ------------ Run | Yrd Mat Min Exi Min Mat Gar Fac Gar Fac Gar Fac Gar Used RIF Installer 5 | . . . . . . 2 . 2 . 1 . . Coupler Efficiency 1 | . . . . . . . . . . 1 . . Code Merge 1 | . . . . . . . . 1 . . . . Signal Jammer 1 | . . . . . . 1 . . . . . . Structural Interface 1 | . . . . . . . . 1 . . . . Robots Hacked 4 | . . . . . . . . . . 4 . . Non-combat . | . . . . . . . . . . . . . Combat 4 | . . . . . . . . . . 4 . . Robot Hacks Applied 4 | . . . . . . . . . . 4 . . parse_system 1 | . . . . . . . . . . 1 . . amplify_resonance 1 | . . . . . . . . . . 1 . . streamctrl_high 2 | . . . . . . . . . . 2 . . Relay Couplers Released 16 | . . . . . . 3 . 5 . 8 . . Machine Destruction 16 | . . . . . . 3 . 5 . 8 . . Attached 4 | . . . . . . . 1 . . 2 . 1 Fabnet Peak Effective % . | . . . . . . . . . . . . . Robots Rewired 4 | . . . . . . . . . . . . 4 Allies Hacked . | . . . . . . . . . . . . . Hacks Repelled . | . . . . . . . . . . . . . Allies | -11 -10 -10 -10 -9 -8 -8 -7 -7 -7 -7 -6 -6 -------- Run | Yrd Mat Min Exi Min Mat Gar Fac Gar Fac Gar Fac Gar Total Allies 19 | . . . . . . . . . 12 3 . 4 Largest Group 4 | . . . . . . . . . 4 2 . 4 Highest-Rated Group 116 | . . . . . . . . . 107 25 . 116 Highest-Rated Ally 31 | . . . . . . . . . 31 25 . 29 Total Orders . | . . . . . . . . . . . . . Ally Attacks 52 | . . . . . . . . . 12 20 . 20 Total Damage 663 | . . . . . . . . . 182 233 . 248 Kills 10 | . . . . . . . . . 5 1 . 4 Allies Corrupted . | . . . . . . . . . . . . . Allies Melted 1 | . . . . . . . . . . . . 1 Intel | -11 -10 -10 -10 -9 -8 -8 -7 -7 -7 -7 -6 -6 ------- Run | Yrd Mat Min Exi Min Mat Gar Fac Gar Fac Gar Fac Gar Active Infowar (turns) 3088 | . 114 . . 2 209 . 232 . 1664 563 31 273 Sensors 116 | . 114 . . 2 . . . . . . . . Terrain 816 | . . . . . 209 . 232 . 374 1 . . Jamming 2157 | . . . . . . . . . 1290 563 31 273 Robot Analysis Total . | . . . . . . . . . . . . . Derelict Logs Recovered 4 | . . 2 . 2 . . . . . . . . Drone Launches . | . . . . . . . . . . . . . Drone Recoveries . | . . . . . . . . . . . . . Exploration | -11 -10 -10 -10 -9 -8 -8 -7 -7 -7 -7 -6 -6 ------------- Run | Yrd Mat Min Exi Min Mat Gar Fac Gar Fac Gar Fac Gar Turns Passed 9746 | 50 1243 220 265 1184 1306 1324 551 468 2165 563 31 376 Spaces Moved 5851 | 45 861 171 245 920 585 910 387 272 941 428 21 65 Core 4 | 2 . . 2 . . . . . . . . . Treads . | . . . . . . . . . . . . . Legs 2975 | . . . 95 920 539 . . 59 848 428 21 65 Wheels 2872 | 43 861 171 148 . 46 910 387 213 93 . . . Hover . | . . . . . . . . . . . . . Flight . | . . . . . . . . . . . . . Fastest Speed 50 | 50 90 120 90 90 90 120 120 120 110 112 112 112 Average Speed 119 | 87 118 120 105 90 120 120 120 130 148 112 139 176 Slowest Speed 800 | 90 120 120 800 170 170 120 120 170 185 190 184 250 Overloaded Moves . | . . . . . . . . . . . . . Propulsion Burnouts . | . . . . . . . . . . . . . Robots Hopped . | . . . . . . . . . . . . . Potential Cave-ins 4 | . . . . . . . . 4 . . . . Cave-ins Triggered 1 | . . . . . . . . 1 . . . . Exploration Rate (%) 45 | 3 96 37 61 95 43 86 8 37 22 51 . 9 Regions Visited 12 Branch Regions 3 Pre-discovered Areas 4 | . . 1 1 1 1 . . . . . . . Known Exits Taken 4 | . . . . . 1 . 1 . 1 . 1 . Unknown Exits Taken 5 | 1 1 1 1 1 . . . . . . . . Scrap Searched 3 | . . 1 . 2 . . . . . . . . Spaces Dug 39 | . 1 . . . 3 6 2 12 14 1 . . Terrain Destroyed 238 | . 45 25 . 38 3 19 38 49 20 1 . . Melee 31 | . 1 . . . 3 6 2 4 14 1 . . Projectile 11 | . 5 . . 3 . . . 3 . . . . AOE 196 | . 39 25 . 35 . 13 36 42 6 . . . Terrain Rammed . | . . . . . . . . . . . . . Walls Destroyed . | . . . . . . . . . . . . . Machines Disabled . | . . . . . . . . . . . . . Actions | -11 -10 -10 -10 -9 -8 -8 -7 -7 -7 -7 -6 -6 --------- Run | Yrd Mat Min Exi Min Mat Gar Fac Gar Fac Gar Fac Gar Total 8050 | 52 992 179 253 1239 1148 1046 439 328 1590 488 24 272 Wait 1510 | . 21 . . 289 482 48 15 2 497 14 . 142 Move 5835 | 44 860 170 244 919 584 908 386 269 940 426 20 65 Hop . | . . . . . . . . . . . . . Pick Up 83 | 2 28 2 . 3 14 2 4 5 17 6 . . Fast Attach 47 | 6 7 . 2 2 7 1 . . 16 5 1 . Attach 43 | . . . 2 . 7 2 4 5 12 6 1 4 Detach 22 | . 3 . 2 . 7 2 1 . 5 2 . . Swap 55 | . 10 1 . 4 6 8 5 4 9 4 . 4 Drop 78 | . 13 2 3 3 17 2 3 4 24 5 2 . Fire 244 | . 49 4 . 19 16 33 14 28 39 14 . 28 Melee 78 | . 1 . . . 8 24 7 10 26 2 . . Ram . | . . . . . . . . . . . . . Kick . | . . . . . . . . . . . . . Crush . | . . . . . . . . . . . . . Escape Stasis 22 | . . . . . . 16 . 1 5 . . . Rewire 33 | . . . . . . . . . . 4 . 29 Trap . | . . . . . . . . . . . . . Miscellaneous . | . . . . . . . . . . . . . Route ------- -11/Scrapyard -10/Materials (discovered 4 exits: *Mat x3 / [*Min]) -10/Mines (discovered 2 exits: Mat / *Exi) -10/Exiles -9/Mines -8/Materials (discovered 3 exits: *Fac / *Sto / Gar) -8/Garrison (discovered 3 exits: *Fac x3) -7/Factory (discovered 6 exits: *Fac x3 / *Low x2 / Gar) -7/Garrison -7/Factory (discovered 2 exits: *Low / Gar) -7/Garrison -6/Factory -6/Garrison History --------- Turn | Location | Event 15 | -11/Scrapyard | Discovered new exit (range 14) 51 | -11/Scrapyard | Entered Materials 227 | -10/Materials | Discovered new exit (range 14) 302 | -10/Materials | Build established: Mutant 574 | -10/Materials | Discovered new exit (range 15) 846 | -10/Materials | Discovered new exit (range 15) 1078 | -10/Materials | Discovered new exit (range 16) 1294 | -10/Materials | Entered Mines 1310 | -10/Mines | Identified exit to Materials 1507 | -10/Mines | Deemed a non-threat by the Exiles lab entrance 1508 | -10/Mines | Discovered new exit (range 5) 1514 | -10/Mines | Entered Exiles 1542 | -10/Exiles | Met 8R-AWN 1559 | -10/Exiles | Met EX-HEX 1601 | -10/Exiles | Met EX-DEC 1605 | -10/Exiles | Learned location of Zion (-7) 1622 | -10/Exiles | Met EX-BIN 1637 | -10/Exiles | Aligned with FarCom system 1638 | -10/Exiles | Given EX-Vault access code 1664 | -10/Exiles | Opened EX-Vault 1688 | -10/Exiles | Found Potential Leg 1692 | -10/Exiles | Found Potential Leg 1711 | -10/Exiles | Warned to stay clear of 0b10 Research branches 1766 | -10/Exiles | Discovered new exit (range 14) 1779 | -10/Exiles | Left Exiles lab with Potential Leg 1779 | -10/Exiles | Entered Mines 1781 | -9/Mines | Learned Materials terminal intel 1805 | -9/Mines | Found a damaged Exp. Sensor Array with a note attached 1849 | -9/Mines | Found Prototype Device 1853 | -9/Mines | Identified Exp. Sensor Array 2198 | -9/Mines | Received a Rocket Launcher from a helpful Derelict 2955 | -9/Mines | Discovered new exit (range 7) 2963 | -9/Mines | Entered Materials 2963 | -8/Materials | Evolved 4 slots: Propulsion x2, Utility x2 2964 | -8/Materials | Loaded intel: 12 terminal locations 2966 | -8/Materials | Discovered new exit (range 14) 3417 | -8/Materials | Identified exit to Storage 3936 | -8/Materials | Learned Factory trap positions 3983 | -8/Materials | Learned Factory stockpile data 4011 | -8/Materials | Discovered new exit (range 3) 4019 | -8/Materials | Learned 8 Factory zone layouts 4046 | -8/Materials | Learned 2 Storage zone layouts 4094 | -8/Materials | Learned Storage security intel 4134 | -8/Materials | Learned Factory stockpile data 4263 | -8/Materials | Identified exit to Garrison 4269 | -8/Materials | Entered Garrison 4285 | -8/Garrison | Triggered checkpoint 4723 | -8/Garrison | Triggered checkpoint 4851 | -8/Garrison | Discovered new exit (range 15) 4923 | -8/Garrison | Garrison Relay disabled 4971 | -8/Garrison | Discovered new exit (range 64) 4971 | -8/Garrison | Discovered new exit (range 92) 4971 | -8/Garrison | Discovered new exit (range 18) 5047 | -8/Garrison | Triggered checkpoint 5193 | -8/Garrison | Installed Relay Interface Framework 5281 | -8/Garrison | Triggered checkpoint 5372 | -8/Garrison | Expanded RIF knowledge: Signal Jamming 5593 | -8/Garrison | Entered Factory 5593 | -7/Factory | Evolved 2 slots: Utility x1, Weapon x1 5594 | -7/Factory | Identified exit to Lower Caves 5594 | -7/Factory | Identified exit to Factory 5595 | -7/Factory | Loaded intel: 125 trap records 5687 | -7/Factory | Discovered exit to Factory (range 7) 5687 | -7/Factory | Discovered exit to Lower Caves (range 14) 5942 | -7/Factory | Discovered exit to Factory (range 12) 6135 | -7/Factory | Identified exit to Garrison 6144 | -7/Factory | Entered Garrison 6167 | -7/Garrison | Triggered checkpoint 6217 | -7/Garrison | Destroyed 7 combat bots 6245 | -7/Garrison | Garrison Relay disabled 6401 | -7/Garrison | Expanded RIF knowledge: Structural Interface 6502 | -7/Garrison | Triggered checkpoint 6508 | -7/Garrison | Crushed by falling debris 6509 | -7/Garrison | System corruption reached 10% 6529 | -7/Garrison | Expanded RIF knowledge: Code Merge 6539 | -7/Garrison | Lost 3 parts (1p2n) 6601 | -7/Garrison | Discovered new exit (range 5) 6612 | -7/Garrison | Entered Factory 6982 | -7/Factory | Discovered exit to Lower Caves (range 14) 7314 | -7/Factory | Build established: Scavenger-Assassin 7672 | -7/Factory | Build established: Mutant 8775 | -7/Factory | Identified exit to Garrison 8777 | -7/Factory | Entered Garrison 8823 | -7/Garrison | Triggered checkpoint 8848 | -7/Garrison | Garrison Relay disabled 8907 | -7/Garrison | Rescued a captive Derelict 9092 | -7/Garrison | Triggered checkpoint 9123 | -7/Garrison | Core integrity fell below 50% 9232 | -7/Garrison | Garrison Relay disabled 9265 | -7/Garrison | Expanded RIF knowledge: Coupler Efficiency 9295 | -7/Garrison | Triggered checkpoint 9316 | -7/Garrison | Discovered exit to Factory (range 2) 9340 | -7/Garrison | Entered Factory 9340 | -6/Factory | Evolved 2 slots: Power x1, Utility x1 9370 | -6/Factory | Identified exit to Garrison 9371 | -6/Factory | Entered Garrison 9508 | -6/Garrison | Warlord forces raided the area 9531 | -6/Garrison | Triggered checkpoint 9543 | -6/Garrison | Triggered checkpoint 9551 | -6/Garrison | Lost 4 allies 9633 | -6/Garrison | Triggered checkpoint 9635 | -6/Garrison | Triggered checkpoint 9643 | -6/Garrison | Triggered checkpoint 9709 | -6/Garrison | Core integrity fell below 50% 9734 | -6/Garrison | Core integrity fell below 20% 9737 | -6/Garrison | Lost 15 parts (2p4n5u4w) 9747 | -6/Garrison | Destroyed by G-50 Soldier with Heavy Laser Last Messages --------------- 09625_ Imp. Medium Armor Plating destroyed. 09625_ Mic. Fission Core destroyed. 09625_ RIF reveals location of phase wall. 09629_ Triggered Stasis Trap. 09629_ A bubble of rippling energy engulfs the area. 09629_ Field strength at 85. 09630_ S-27 Virus destroyed. 09633_ Beams of light sweep through the air. An alarm sounds. 09649_ Plasma Cannon destroyed. 09663_ Stasis field depleted. 09666_ Plasma Cannon destroyed. 09676_ Adv. Heat Sink destroyed. 09693_ Potential Leg destroyed. 09697_ Imp. Titanium Leg destroyed. 09701_ Critical hit (Burn: +37). 09706_ Transmission Jammer destroyed. 09707_ Critical hit (Burn: +37). [Achievement: Achiever] Map ----- +----------------------------------------------------+ | ?????????????????????????????????????????????????? | | ?????????????????????????????????????????????????? | | ?????????????????????????????????????????????????? | | ?????????????????????????????????????????????????? | | ?????????????????????????????????????????????????? | | ?????????????????????????????????????????????????? | | ?????????????????????????????????????????????????? | | ?????????????????????????????????????????????????? | | ?????????????????????????????????????????????????? | | ?????????????????s???????????????????????????????? | | ????????????# ??????????????????????????????????? | | ????????????# ??????????????????????????????????? | | ???????????? ?????#????????????????????????????? | | ???????????? ????? ????????????????????????????? | | ???????????? ????? ????????????????????????????? | | ????????????# ????? ????????????????????????????? | | ????????????# ????# #???????????????????????????? | | ????????????# #???# #???????????????????????????? | | ????????????# #???# #???????????????????????????? | | ????????????+ #??? ???????????????????????????? | | ????????????# #???#l#????????????Y??????????????? | | ???????????## ##??#Y#???????????????????????????? | | ???????????# *####Y##??????????????????????????? | | ??????????## =%!!%l #??????????????????????????? | | ??????????# ! %= g####### ##???????????????? | | ??????????# # ####Ysgss@ g #???????????? | | ???????????# ## ## ######+++++#???????????????? | | ??????????#### #### #?????????##???????????????? | | ??????????# %[]!%### #??????????????????????????? | | ??????????## ![ *### #??????????????????????????? | | ??????????## *%= ### ###????????????????????????? | | ???????????###%###?# #????????????????????????? | | ?????????????#"#???# #????????????????????????? | | ?????????????#=#???# #????????????????????????? | | ?????????????#*#???######????????????????????????? | | ?????????????#%#?????????????????????????????????? | | ?????????????#*#?????????????????????????????????? | | ?????????????#%#?????????????????????????????????? | | ?????????????#=#?????????????????????????????????? | | ?????????????#%#?????????????????????????????????? | | ?????????????#=#?????????????????????????????????? | | ????????????? ! ?????????????????????????????????? | | ????????????? [ ?????????????????????????????????? | | ????????????? [ ?????????????????????????????????? | | ????????????? ?????????????????????????????????? | | ???????????? ????????????????????????????????? | | ????????????#####????????????????????????????????? | | ?????????????????????????????????????????????????? | | ?????????????????????????????????????????????????? | | ?????????????????????????????????????????????????? | +----------------------------------------------------+ Best States ------------- Heat Dissipation 70 Energy Generation 26 Energy Capacity 340 Matter Stores 300 Matter Capacity 300 Sight Range 16 Robot Scan Range 14 Terrain Scan Range 16 Terrain Scan Density 10 Jamming Range 12 Armor Coverage 450 Evasion (%) 57 Targeting Accuracy 6 Offensive Hacking 10 Relay Coupler Types 1 Relay Coupler Value 33 Item Schematics ----------------- Xenon Bombardment Thruster | -7/Factory | Scanalyzed Robot Schematics ------------------ None Fabricated ------------ Nothing Repaired ---------- Nothing Alien Tech Used ----------------- None Achievements -------------- Achiever Error 47 Infiltrator Challenges ------------ None Game ------ Seed FieldPlexusGravjet Manual? 0 Play Time 01:59:33 Cumulative 30.4 hours Start 2025.10.19 @ 01:45:57 End 2025.10.19 @ 13:25:49 Sessions 5 Manual Loads 0 Difficulty Rogue Special Mode None Game No. 32 Rogue 32 Adventurer 0 Explorer 0 Win Type - Total 0 Types 0/0/0/0/0/0/0/0/0/0 Lore% 21 Gallery% 24 Achievement% 25 Wizard Run 0 Options --------- Layout 1 ASCII 0 Keyboard 0 Movement Numpad Keybinds 0 Fullscreen 1 Font 24/Smallcaps Map View 50x35 Zoom Use 0% Tactical HUD 1 Map Filters NONE Filters NONE Steam 1 RUN: 9a39f929-c857-4e1f-839f-250785230ff1